{"text_format":"3","workbook":"xlsx","n_sheets":1,"sheets":["Budżet działalności niedochod."],"not_rendered":{"charts":2,"images":1,"defined_names":1},"read":"whole","date_system":"1900"}

{"sheet":"Budżet działalności niedochod.","index":0,"n_rows":40,"n_cols":7,"rows_kept":40,"merged":[[16,1,16,6],[21,1,21,5]]}
[null,"Budżet działalności niedochodowej",{"$nulls":3},"ROK OBRACHUNKOWY",2012]
{"$rows_empty":7}
[null,null,{"$f":"CONCATENATE(\"RO \",RO-1)","v":"RO 2011"},{"$f":"CONCATENATE(\"RO \",RO)","v":"RO 2012"},{"$f":"CONCATENATE(\"RO \",RO)","v":"RO 2012"},{"$f":"CONCATENATE(\"RO \",RO)","v":"RO 2012"},{"$f":"CONCATENATE(\"RO \",RO)","v":"RO 2012"}]
[null,"PRZYCHÓD","POPRZEDNI ROK","PROPONOWANE","RZECZYWISTE","RÓŻNICA","+/- POPRZEDNI ROK"]
[null,"Zbiórka funduszy i wydarzenia",{"v":150000,"d":"150,000.00"},{"v":200000,"d":"200,000.00"},{"v":180000,"d":"180,000.00"},{"$f":"Tabela_Przychód[[#This Row],[RZECZYWISTE]]-Tabela_Przychód[[#This Row],[PROPONOWANE]]","v":{"v":-20000,"d":"-20,000.00 "}},{"$f":"Tabela_Przychód[[#This Row],[RZECZYWISTE]]-Tabela_Przychód[[#This Row],[POPRZEDNI ROK]]","v":{"v":30000,"d":"30,000.00"}}]
[null,"Fundacja",{"v":50000,"d":"50,000.00"},{"v":50000,"d":"50,000.00"},{"v":50000,"d":"50,000.00"},{"$f":"Tabela_Przychód[[#This Row],[RZECZYWISTE]]-Tabela_Przychód[[#This Row],[PROPONOWANE]]","v":{"v":0,"d":"0.00"}},{"$f":"Tabela_Przychód[[#This Row],[RZECZYWISTE]]-Tabela_Przychód[[#This Row],[POPRZEDNI ROK]]","v":{"v":0,"d":"0.00"}}]
[null,"Dotacje",{"v":30000,"d":"30,000.00"},{"v":40000,"d":"40,000.00"},{"v":20000,"d":"20,000.00"},{"$f":"Tabela_Przychód[[#This Row],[RZECZYWISTE]]-Tabela_Przychód[[#This Row],[PROPONOWANE]]","v":{"v":-20000,"d":"-20,000.00 "}},{"$f":"Tabela_Przychód[[#This Row],[RZECZYWISTE]]-Tabela_Przychód[[#This Row],[POPRZEDNI ROK]]","v":{"v":-10000,"d":"-10,000.00 "}}]
[null,"Przychód z tytułu odsetek",{"$nulls":3},{"$f":"Tabela_Przychód[[#This Row],[RZECZYWISTE]]-Tabela_Przychód[[#This Row],[PROPONOWANE]]","v":{"v":0,"d":"0.00"}},{"$f":"Tabela_Przychód[[#This Row],[RZECZYWISTE]]-Tabela_Przychód[[#This Row],[POPRZEDNI ROK]]","v":{"v":0,"d":"0.00"}}]
[null,"Różne",{"$nulls":3},{"$f":"Tabela_Przychód[[#This Row],[RZECZYWISTE]]-Tabela_Przychód[[#This Row],[PROPONOWANE]]","v":{"v":0,"d":"0.00"}},{"$f":"Tabela_Przychód[[#This Row],[RZECZYWISTE]]-Tabela_Przychód[[#This Row],[POPRZEDNI ROK]]","v":{"v":0,"d":"0.00"}}]
[null,"SUMY",{"$f":"SUBTOTAL(109,Tabela_Przychód[POPRZEDNI ROK])","v":{"v":230000,"d":"230,000.00 zł"}},{"$f":"SUBTOTAL(109,Tabela_Przychód[PROPONOWANE])","v":{"v":290000,"d":"290,000.00 zł"}},{"$f":"SUBTOTAL(109,Tabela_Przychód[RZECZYWISTE])","v":{"v":250000,"d":"250,000.00 zł"}},{"$f":"SUBTOTAL(109,Tabela_Przychód[RÓŻNICA])","v":{"v":-40000,"d":"-40,000.00 zł"}},{"$f":"SUBTOTAL(105,Tabela_Przychód[+/- POPRZEDNI ROK])","v":{"v":-10000,"d":"-10,000.00 zł"}}]
{"$rows_empty":8}
[null,null,{"$f":"CONCATENATE(\"RO \",RO-1)","v":"RO 2011"},{"$f":"CONCATENATE(\"RO \",RO)","v":"RO 2012"},{"$f":"CONCATENATE(\"RO \",RO)","v":"RO 2012"},{"$f":"CONCATENATE(\"RO \",RO)","v":"RO 2012"},{"$f":"CONCATENATE(\"RO \",RO)","v":"RO 2012"}]
[null,"WYDATKI","POPRZEDNI ROK","PROPONOWANE","RZECZYWISTE","RÓŻNICA","+/- POPRZEDNI ROK"]
[null,"Wypłaty",{"v":15000,"d":"15,000.00"},{"v":30000,"d":"30,000.00"},{"v":30000,"d":"30,000.00"},{"$f":"Tabela_Wydatki[[#This Row],[RZECZYWISTE]]-Tabela_Wydatki[[#This Row],[PROPONOWANE]]","v":{"v":0,"d":"0.00"}},{"$f":"Tabela_Wydatki[[#This Row],[RZECZYWISTE]]-Tabela_Wydatki[[#This Row],[POPRZEDNI ROK]]","v":{"v":15000,"d":"15,000.00"}}]
[null,"Świadczenia",{"v":5000,"d":"5,000.00"},{"v":7500,"d":"7,500.00"},{"v":7800,"d":"7,800.00"},{"$f":"Tabela_Wydatki[[#This Row],[RZECZYWISTE]]-Tabela_Wydatki[[#This Row],[PROPONOWANE]]","v":{"v":300,"d":"300.00"}},{"$f":"Tabela_Wydatki[[#This Row],[RZECZYWISTE]]-Tabela_Wydatki[[#This Row],[POPRZEDNI ROK]]","v":{"v":2800,"d":"2,800.00"}}]
[null,"Czynsz",{"v":6000,"d":"6,000.00"},{"v":6000,"d":"6,000.00"},{"v":6000,"d":"6,000.00"},{"$f":"Tabela_Wydatki[[#This Row],[RZECZYWISTE]]-Tabela_Wydatki[[#This Row],[PROPONOWANE]]","v":{"v":0,"d":"0.00"}},{"$f":"Tabela_Wydatki[[#This Row],[RZECZYWISTE]]-Tabela_Wydatki[[#This Row],[POPRZEDNI ROK]]","v":{"v":0,"d":"0.00"}}]
[null,"Opłaty rachunków",{"v":1000,"d":"1,000.00"},{"v":1200,"d":"1,200.00"},{"v":1150,"d":"1,150.00"},{"$f":"Tabela_Wydatki[[#This Row],[RZECZYWISTE]]-Tabela_Wydatki[[#This Row],[PROPONOWANE]]","v":{"v":-50,"d":"-50.00 "}},{"$f":"Tabela_Wydatki[[#This Row],[RZECZYWISTE]]-Tabela_Wydatki[[#This Row],[POPRZEDNI ROK]]","v":{"v":150,"d":"150.00"}}]
[null,"Podróże i spotkania",{"v":2500,"d":"2,500.00"},{"v":2000,"d":"2,000.00"},{"v":2800,"d":"2,800.00"},{"$f":"Tabela_Wydatki[[#This Row],[RZECZYWISTE]]-Tabela_Wydatki[[#This Row],[PROPONOWANE]]","v":{"v":800,"d":"800.00"}},{"$f":"Tabela_Wydatki[[#This Row],[RZECZYWISTE]]-Tabela_Wydatki[[#This Row],[POPRZEDNI ROK]]","v":{"v":300,"d":"300.00"}}]
[null,"Opłaty dla profesjonalistów",{"$nulls":3},{"$f":"Tabela_Wydatki[[#This Row],[RZECZYWISTE]]-Tabela_Wydatki[[#This Row],[PROPONOWANE]]","v":{"v":0,"d":"0.00"}},{"$f":"Tabela_Wydatki[[#This Row],[RZECZYWISTE]]-Tabela_Wydatki[[#This Row],[POPRZEDNI ROK]]","v":{"v":0,"d":"0.00"}}]
[null,"Marketing/reklama",{"$nulls":3},{"$f":"Tabela_Wydatki[[#This Row],[RZECZYWISTE]]-Tabela_Wydatki[[#This Row],[PROPONOWANE]]","v":{"v":0,"d":"0.00"}},{"$f":"Tabela_Wydatki[[#This Row],[RZECZYWISTE]]-Tabela_Wydatki[[#This Row],[POPRZEDNI ROK]]","v":{"v":0,"d":"0.00"}}]
[null,"Ubezpieczenie",{"$nulls":3},{"$f":"Tabela_Wydatki[[#This Row],[RZECZYWISTE]]-Tabela_Wydatki[[#This Row],[PROPONOWANE]]","v":{"v":0,"d":"0.00"}},{"$f":"Tabela_Wydatki[[#This Row],[RZECZYWISTE]]-Tabela_Wydatki[[#This Row],[POPRZEDNI ROK]]","v":{"v":0,"d":"0.00"}}]
[null,"Telefon",{"$nulls":3},{"$f":"Tabela_Wydatki[[#This Row],[RZECZYWISTE]]-Tabela_Wydatki[[#This Row],[PROPONOWANE]]","v":{"v":0,"d":"0.00"}},{"$f":"Tabela_Wydatki[[#This Row],[RZECZYWISTE]]-Tabela_Wydatki[[#This Row],[POPRZEDNI ROK]]","v":{"v":0,"d":"0.00"}}]
[null,"Opłaty internetowe (witryna sieci Web, miejsce spotkań itd.)",{"$nulls":3},{"$f":"Tabela_Wydatki[[#This Row],[RZECZYWISTE]]-Tabela_Wydatki[[#This Row],[PROPONOWANE]]","v":{"v":0,"d":"0.00"}},{"$f":"Tabela_Wydatki[[#This Row],[RZECZYWISTE]]-Tabela_Wydatki[[#This Row],[POPRZEDNI ROK]]","v":{"v":0,"d":"0.00"}}]
[null,"Wyposażenie",{"$nulls":3},{"$f":"Tabela_Wydatki[[#This Row],[RZECZYWISTE]]-Tabela_Wydatki[[#This Row],[PROPONOWANE]]","v":{"v":0,"d":"0.00"}},{"$f":"Tabela_Wydatki[[#This Row],[RZECZYWISTE]]-Tabela_Wydatki[[#This Row],[POPRZEDNI ROK]]","v":{"v":0,"d":"0.00"}}]
[null,"Zaopatrzenie",{"$nulls":3},{"$f":"Tabela_Wydatki[[#This Row],[RZECZYWISTE]]-Tabela_Wydatki[[#This Row],[PROPONOWANE]]","v":{"v":0,"d":"0.00"}},{"$f":"Tabela_Wydatki[[#This Row],[RZECZYWISTE]]-Tabela_Wydatki[[#This Row],[POPRZEDNI ROK]]","v":{"v":0,"d":"0.00"}}]
[null,"Opłaty pocztowe",{"$nulls":3},{"$f":"Tabela_Wydatki[[#This Row],[RZECZYWISTE]]-Tabela_Wydatki[[#This Row],[PROPONOWANE]]","v":{"v":0,"d":"0.00"}},{"$f":"Tabela_Wydatki[[#This Row],[RZECZYWISTE]]-Tabela_Wydatki[[#This Row],[POPRZEDNI ROK]]","v":{"v":0,"d":"0.00"}}]
[null,"SUMY",{"$f":"SUBTOTAL(109,Tabela_Wydatki[POPRZEDNI ROK])","v":{"v":29500,"d":"29,500.00 zł"}},{"$f":"SUBTOTAL(109,Tabela_Wydatki[PROPONOWANE])","v":{"v":46700,"d":"46,700.00 zł"}},{"$f":"SUBTOTAL(109,Tabela_Wydatki[RZECZYWISTE])","v":{"v":47750,"d":"47,750.00 zł"}},{"$f":"SUBTOTAL(109,Tabela_Wydatki[RÓŻNICA])","v":{"v":1050,"d":"1,050.00 zł"}},{"$f":"SUBTOTAL(109,Tabela_Wydatki[+/- POPRZEDNI ROK])","v":{"v":18250,"d":"18,250.00 zł"}}]